bitfinex-derivatives/quotes_SOLF0:USTF0_20250929
["timestamp","ask_amount","ask_price","bid_price","bid_amount"]
[1759178052814,7.75,213.83,213.74,4.2078]
[1759178054210,11.9563,213.83,213.75,4.2076]
[1759178054410,11.9563,213.83,213.76,7.74]
[1759178054811,7.75,213.83,213.76,11.9474]
[1759178055013,7.75,213.83,213.76,7.74]
[1759178055510,7.75,213.83,213.78,4.207]
[1759178055715,7.75,213.83,213.79,7.74]
[1759178055914,7.75,213.83,213.78,4.207]
[1759178056114,7.75,213.83,213.79,7.74]
[1759178057516,7.39,213.84,213.72,3.37319197]
[1759178057712,7.39,213.84,213.71,7.74]
[1759178058108,7.39,213.81,213.72,3.37319197]
[1759178058913,7.39,213.81,213.75,4.2076]
[1759178059218,11.5959,213.85,213.75,3.37319197]
[1759178059820,11.5959,213.85,213.76,7.74]
[1759178060019,11.5959,213.85,213.77,4.2073]
[1759178062322,11.5959,213.85,213.76,7.74]
[1759178062323,11.5959,213.85,213.78,4.207]
[1759178062625,11.5959,213.85,213.76,7.74]
[1759178063628,11.5959,213.85,213.79,4.2068]
[1759178063918,7.39,213.85,213.79,4.2068]
[1759178068322,80.87098276,213.89,213.77,65.4481]
[1759178068515,7.52,213.94,213.84,7.84]
[1759178068716,7.52,213.94,213.87,3.37319197]
[1759178069030,7.52,213.94,213.88,4.205]
[1759178069622,7.52,213.94,213.86,4.2056]
[1759178072324,11.7242,213.94,213.84,7.84]
[1759178072521,11.7242,213.94,213.84,11.21319197]
[1759178072925,11.7242,213.94,213.84,15.41899197]
[1759178073127,7.52,213.95,213.84,3.37319197]
[1759178073723,7.52,213.91,213.84,3.37319197]
[1759178074428,4.2046,213.92,213.86,2.15344371]
[1759178074623,7.52,213.91,213.86,2.15344371]
[1759178074828,4.2046,213.92,213.86,2.15344371]
[1759178075821,5.24066044,213.99,213.92,7.84]
[1759178076126,5.24066044,213.99,213.89,65.4114]
[1759178076127,7.52,214.02,213.98,2.15344371]
[1759178076326,7.52,214.07,214.01,2.15344371]
[1759178076531,7.52,214.07,213.97,12.0433]
[1759178076925,7.52,214.07,214.01,2.15344371]
[1759178077323,2.15344371,214.11,214.04,7.84]
[1759178077324,7.52,214.11,214.04,7.84]
[1759178077528,7.52,214.14,214.08,2.15344371]
[1759178077831,7.52,214.14,214.04,7.84]
[1759178077832,7.52,214.14,214.07,2.15344371]
[1759178078230,5.24066044,214.19,214.04,7.84]
[1759178078425,7.52,214.18,214.04,7.84]
[1759178078626,7.52,214.18,214.11,2.15344371]
[1759178079134,7.52,214.18,214.04,7.84]
[1759178079326,184.86510436,214.2,214.01,195.37239182]
[1759178079327,2.15344371,214.14,214.01,195.37239182]
[1759178079830,2.15344371,214.14,214.03,2.15344371]
[1759178079831,11.7203,214.13,214.03,2.15344371]
[1759178080230,7.52,214.14,214.01,195.37239182]
[1759178080431,7.52,214.13,214.01,195.37239182]
[1759178080727,7.52,214.11,214.01,195.37239182]
[1759178081327,7.52,214.09,213.96,7.84]
[1759178081536,7.52,214.07,213.96,7.84]
[1759178081827,7.52,214.07,213.96,5.29306547]
[1759178082028,7.52,214.07,213.97,7.84]
[1759178083236,7.52,214.11,213.99,7.84]
[1759178084032,7.52,214.09,213.99,7.84]
[1759178084937,4.2013,214.08,213.99,7.84]
[1759178086135,11.7217,214.06,213.96,19.30960156]
[1759178086337,11.7217,214.06,213.97,7.84]
[1759178086537,7.52,214.06,213.97,7.84]
[1759178086739,7.52,214.03,213.96,14.01653609]
[1759178087041,7.52,214.03,213.95,2.40913791]
[1759178087639,4.2024,214.02,213.95,2.40913791]
[1759178088147,4.2024,214.02,213.95,16.29379132]
[1759178088643,7.52,214.03,213.95,16.29379132]
[1759178089344,7.52,214.03,213.95,24.13379132]
[1759178091241,7.52,214.11,213.96,7.84]
[1759178091443,8.33296065,214.2,214.04,7.84]
[1759178091738,7.52,214.26,214.1,7.84]
[1759178091939,7.52,214.26,214.12,7.84]
[1759178092340,7.52,214.26,214.08,7.84]
[1759178092534,0.81267588,214.29,214.08,7.84]
[1759178092535,7.52,214.21,214.08,7.84]
[1759178093538,7.52,214.28,214.1,73.1857]
[1759178093745,313.96,214.34,214.11,127.59306547]
[1759178093940,5.29306547,214.32,214.12,7.84]
[1759178094146,7.52,214.29,214.12,7.84]
[1759178094844,7.52,214.29,214.13,5.29306547]
[1759178095443,7.52,214.29,214.14,7.73]
[1759178096145,72.8101,214.29,214.14,7.73]
[1759178096448,7.52,214.29,214.14,13.02306547]
[1759178096648,7.52,214.29,214.15,7.73]
[1759178096837,7.52,214.29,214.17,7.73]
[1759178097043,7.48,214.29,214.19,7.73]
[1759178098739,313.96,214.34,214.19,7.73]
[1759178098940,7.48,214.33,214.19,7.73]
[1759178099252,7.48,214.29,214.19,7.73]
[1759178099455,72.7728,214.28,214.14,7.73]
[1759178099844,76.9702,214.28,214.14,7.73]
[1759178100352,7.48,214.23,214.09,7.73]
[1759178100946,7.48,214.23,214.11,7.73]
[1759178101541,7.48,214.23,214.12,7.73]
[1759178102443,7.48,214.23,214.09,65.3505]
[1759178102444,0.81270434,214.27,214.14,13.02306547]
[1759178102746,313.96,214.34,214.18,13.02306547]
[1759178103048,128.0,214.35,214.15,65.3305]
[1759178103049,128.0,214.35,214.23,7.73]
[1759178103947,7.48,214.36,214.23,7.73]
[1759178104149,21.06963171,214.43,214.34,5.29306547]
[1759178104354,13.58963171,214.43,214.34,7.73]
[1759178104546,13.58963171,214.43,214.39,5.29306547]
[1759178104745,13.58963171,214.43,214.33,195.8567]
[1759178104746,13.58963171,214.43,214.35,65.2707]
[1759178104946,13.58963171,214.43,214.38,7.73]
[1759178105145,13.58963171,214.43,214.42,7.73]
[1759178105348,13.58963171,214.43,214.36,7.73]
[1759178105552,13.58963171,214.43,214.42,7.73]
[1759178105851,64.86,214.56,214.42,7.73]
[1759178105852,7.48,214.54,214.42,7.73]
[1759178106156,7.48,214.55,214.42,5.29306547]
[1759178106543,64.86,214.56,214.34,59.53070137]
[1759178106544,65.228,214.5,214.34,59.53070137]
[1759178106743,7.48,214.49,214.34,21.83365193]
[1759178106949,7.48,214.49,214.34,27.1267174]
[1759178107160,7.48,214.49,214.39,7.73]
[1759178107448,0.81159555,214.55,214.34,79.37725193]
[1759178107449,7.48,214.55,214.35,7.73]
[1759178107647,7.48,214.52,214.37,5.29306547]
[1759178107844,7.48,214.5,214.36,5.29306547]
[1759178108154,7.48,214.48,214.34,5.29306547]
[1759178108652,7.48,214.46,214.34,14.03141401]
[1759178108948,7.48,214.46,214.24,7.73]
[1759178108949,65.2541,214.41,214.24,7.73]
[1759178109250,7.48,214.38,214.27,5.29306547]
[1759178109445,65.241,214.45,214.28,7.73]
[1759178109647,7.48,214.44,214.28,7.73]
[1759178110051,7.48,214.44,214.32,7.73]
[1759178110251,7.48,214.48,214.32,7.73]
[1759178110450,7.48,214.48,214.35,5.29306547]
[1759178110745,7.48,214.48,214.36,5.29306547]
[1759178110946,72.7128,214.48,214.32,5.29306547]
[1759178111145,72.7128,214.48,214.29,7.73]
[1759178111146,69.445,214.42,214.29,7.73]
[1759178111351,7.48,214.41,214.29,7.73]
[1759178111544,7.48,214.41,214.28,5.29306547]
[1759178111545,65.2563,214.4,214.28,5.29306547]
[1759178111749,7.48,214.39,214.27,21.9066477]
[1759178112147,7.48,214.39,214.28,5.29306547]
[1759178112349,7.48,214.39,214.27,27.19971317]
[1759178113149,7.48,214.39,214.27,92.49541317]
[1759178113354,7.48,214.39,214.27,21.9066477]
[1759178113652,7.48,214.38,214.27,14.1766477]
[1759178113854,7.48,214.37,214.24,37.95166696]
[1759178114156,4.1958,214.36,214.24,37.95166696]
[1759178114455,7.42,214.35,214.22,7.73]
[1759178114654,65.2808,214.32,214.17,7.61]
[1759178114843,7.42,214.31,214.17,7.61]
[1759178115246,7.42,214.27,214.11,7.61]
[1759178115546,7.42,214.21,214.08,327.80088676]
[1759178115746,7.42,214.21,214.08,364.70706313]
[1759178115957,7.42,214.21,214.09,7.61]
[1759178116454,7.42,214.19,214.05,175.00338535]
[1759178116655,7.42,214.19,214.06,72.9697]
[1759178116850,508.2927,214.28,214.13,65.3379]
[1759178116851,313.54,214.28,214.13,65.3379]
[1759178117053,5.29306547,214.31,214.14,7.61]
[1759178117357,7.42,214.23,214.07,7.61]
[1759178117752,65.3049,214.24,214.07,7.61]
[1759178117753,65.3113,214.22,214.07,7.61]
[1759178117955,7.42,214.21,214.07,7.61]
[1759178118356,7.42,214.21,214.08,4.2013]
[1759178118554,7.42,214.21,214.07,7.61]
[1759178118955,7.42,214.21,214.08,4.2012]
[1759178119258,7.42,214.21,214.07,7.61]
[1759178119454,4.1989,214.2,214.07,7.61]
[1759178119654,7.42,214.21,214.07,7.61]
[1759178120257,72.7497,214.16,214.03,0.20215]
[1759178120459,7.42,214.13,214.03,0.20215]
[1759178121164,11.6203,214.13,214.03,0.20215]
[1759178121660,7.42,214.19,214.05,4.2018]
[1759178121863,7.42,214.19,214.05,65.3627]
[1759178122252,7.42,214.19,214.07,4.2014]
[1759178122457,7.42,214.19,214.04,7.61]
[1759178122962,11.6192,214.19,214.06,4.2016]
[1759178123163,7.42,214.19,214.06,4.2016]
[1759178123665,4.1993,214.18,214.06,4.2016]
[1759178124059,7.42,214.19,214.04,72.9755]
[1759178124254,7.42,214.19,214.04,7.61]
[1759178124255,4.1996,214.17,214.04,7.61]
[1759178124760,4.2003,214.13,214.03,14.09087128]
[1759178124965,7.47,214.16,214.04,7.28]
[1759178125465,4.2002,214.14,214.04,7.28]
[1759178125856,7.47,214.11,214.03,0.20215]
[1759178126365,7.47,214.09,214.03,0.20215]
[1759178126963,65.3416,214.12,214.03,0.20215]
[1759178126964,4.2015,214.07,214.03,0.20215]
[1759178127164,7.47,214.06,214.03,0.20215]
[1759178127366,7.47,214.11,214.03,0.20215]
[1759178128467,11.6707,214.11,214.03,0.20215]
[1759178128761,7.47,214.11,214.03,0.20215]
[1759178129564,7.47,214.11,214.03,4.40435]
[1759178129760,4.2001,214.15,214.03,0.20215]
[1759178129967,7.47,214.16,214.03,0.20215]
[1759178130266,4.2005,214.12,214.03,0.20215]
[1759178130963,7.47,214.13,214.03,4.40435]
[1759178131466,7.47,214.13,214.05,4.2019]
[1759178132075,11.6703,214.13,214.03,0.20215]
[1759178132666,4.2007,214.11,214.03,0.20215]
[1759178132973,7.47,214.13,214.03,0.20215]
[1759178133165,4.2006,214.12,214.03,0.20215]
[1759178133860,7.47,214.13,214.03,0.20215]
[1759178134065,7.47,214.13,214.04,7.28]
[1759178134263,72.7912,214.19,214.04,7.28]
[1759178134664,7.47,214.14,214.04,11.482]
[1759178135373,11.6703,214.14,214.04,11.482]
[1759178135769,7.47,214.14,214.03,0.20215]
[1759178135972,7.47,214.11,214.03,0.20215]
[1759178136674,4.2009,214.1,214.03,0.20215]
[1759178136869,7.47,214.11,214.03,0.20215]
[1759178141276,4.201,214.1,214.03,0.20215]
[1759178141480,7.47,214.11,214.03,0.20215]
[1759178141679,7.47,214.11,214.04,4.202]
[1759178142773,7.47,214.11,214.05,4.2017]
[1759178142971,7.47,214.11,214.03,0.20215]
[1759178143973,4.2018,214.06,214.03,0.20215]
[1759178144170,7.47,214.05,213.99,14.08518462]
[1759178144481,7.47,214.05,213.98,7.28]
[1759178144683,7.47,214.05,213.98,21.00720926]
[1759178144881,7.47,214.05,213.98,7.28]
[1759178145577,7.47,214.05,213.98,11.4831]
[1759178145774,7.47,214.14,213.98,7.28]
[1759178146274,11.6712,214.09,214.0,4.2027]
[1759178146775,11.6712,214.09,213.99,4.203]
[1759178147073,7.47,214.09,213.99,4.203]
[1759178147477,4.2016,214.07,213.99,4.203]
[1759178148081,4.2018,214.06,213.99,4.203]
[1759178148279,7.47,214.09,213.98,21.08641413]
[1759178148679,65.354,214.08,213.95,2.40913791]
[1759178148980,7.47,214.05,213.94,7.45977]
[1759178149278,7.47,214.03,213.94,0.17977]
[1759178150375,11.6723,214.03,213.94,7.45977]
[1759178150573,7.47,214.03,213.94,21.26100398]
[1759178150777,7.47,214.03,213.94,7.45977]
[1759178150778,4.2026,214.02,213.94,7.45977]
[1759178151179,7.47,214.03,213.94,0.17977]
[1759178151482,7.47,214.0,213.94,0.17977]
[1759178151684,72.8491,214.0,213.94,0.17977]
[1759178152482,7.47,213.92,213.85,14.04533644]
[1759178152687,7.47,213.92,213.84,4.2058]
[1759178153084,11.6746,213.92,213.81,11.4864]
[1759178153279,7.47,213.92,213.81,11.4864]
[1759178153888,7.47,213.92,213.81,7.28]
[1759178154187,7.47,213.92,213.81,72.7157]
[1759178154386,91.7,213.98,213.82,73.2127]
[1759178154585,7.34,213.97,213.82,73.2127]
[1759178154886,65.3908,213.96,213.82,21.82450322]
[1759178155085,7.34,213.95,213.82,21.82450322]
[1759178155282,4.2046,213.92,213.82,26.03070322]
[1759178155586,7.34,213.95,213.82,21.82450322]
[1759178155986,4.204,213.94,213.85,4.2056]
[1759178156580,4.2045,213.92,213.82,26.03070322]
[1759178156782,7.34,213.94,213.82,26.03070322]
[1759178156984,7.34,213.93,213.82,14.04450322]
[1759178157192,7.34,213.93,213.78,46.02424211]
[1759178157387,4.2051,213.89,213.8,4.2066]
[1759178157584,7.34,213.9,213.78,7.78]
[1759178157983,11.5449,213.9,213.78,7.78]
[1759178158185,7.34,213.9,213.78,73.2248]
[1759178158684,11.5448,213.9,213.82,4.2062]
[1759178158882,11.5448,213.9,213.78,21.97578149]
[1759178159090,7.34,213.9,213.78,21.97578149]
[1759178159679,4.2052,213.88,213.79,4.2068]
[1759178160489,4.2052,213.88,213.78,21.97578149]
[1759178160490,4.2052,213.88,213.8,4.2066]
[1759178160685,4.2052,213.88,213.78,21.97578149]
[1759178161682,4.2056,213.87,213.78,21.97578149]
[1759178161991,4.2056,213.87,213.71,8.50381169]
[1759178161992,7.34,213.86,213.73,7.78]
[1759178162691,4.2067,213.81,213.73,7.78]
[1759178162992,7.34,213.82,213.73,7.78]
[1759178163189,7.34,213.82,213.73,21.52326598]
[1759178163688,11.5466,213.82,213.73,21.52326598]
[1759178163890,11.5466,213.82,213.73,7.78]
[1759178165591,11.5466,213.82,213.73,21.52464141]
[1759178165592,7.34,213.82,213.73,21.52464141]
[1759178166587,7.34,213.82,213.73,25.73264141]
[1759178167183,7.34,213.82,213.73,21.52464141]
[1759178167589,11.5465,213.82,213.73,21.52464141]
[1759178167898,7.34,213.82,213.73,21.52464141]
[1759178168193,128.14,213.86,213.76,7.78]
[1759178168393,7.34,213.92,213.84,4.2058]
[1759178168590,11.5444,213.92,213.84,4.2058]
[1759178169393,314.08,213.95,213.83,7.78]
[1759178169700,7.34,213.97,213.86,7.78]
[1759178169998,7.34,213.97,213.88,4.2052]
[1759178170191,7.34,213.97,213.86,7.78]
[1759178170900,4.2036,213.96,213.87,4.2052]
[1759178171204,4.2036,213.96,213.86,7.78]
[1759178171494,7.34,213.97,213.86,7.78]
[1759178172399,7.34,213.97,213.89,4.205]
[1759178173700,4.2036,213.96,213.89,4.205]
[1759178174099,7.34,213.97,213.89,4.205]
[1759178174490,127.86,214.01,213.9,7.5]
[1759178175998,127.86,214.01,213.89,65.411]
[1759178175999,4.202,214.05,213.94,7.5]
[1759178176198,4.202,214.05,213.87,192.7175]
[1759178176199,7.32,214.0,213.87,7.5]
[1759178176602,4.2032,213.99,213.88,4.205]
[1759178176905,7.32,214.0,213.88,4.205]
[1759178177297,7.32,214.0,213.88,7.5]
[1759178177700,7.32,214.0,213.9,7.5]
[1759178177898,7.32,214.0,213.92,4.2044]
[1759178178099,7.32,214.0,213.9,7.5]
[1759178178608,4.2022,214.04,213.92,7.5]
[1759178179098,4.2022,214.04,213.95,4.2038]
[1759178179302,7.32,213.99,213.88,7.5]
[1759178181011,127.02,214.06,213.88,7.5]
[1759178181012,7.32,214.05,213.9,7.5]
[1759178181201,4.2026,214.02,213.94,4.2038]
[1759178182697,4.2026,214.02,213.9,7.5]
[1759178182698,4.2028,214.0,213.92,4.2044]
[1759178183004,7.32,214.05,213.91,65.4054]
[1759178184009,11.522,214.05,213.95,4.2037]
[1759178184209,11.522,214.05,213.94,7.5]
[1759178184410,7.32,214.05,213.94,7.5]
[1759178185405,7.32,214.05,213.96,7.42]
[1759178185610,7.52,214.1,213.97,65.3868]
[1759178185798,7.52,214.1,213.98,7.42]
[1759178186003,4.2013,214.08,213.98,7.42]
[1759178187606,4.2013,214.08,213.99,4.203]
[1759178188213,4.2016,214.07,213.98,7.42]
[1759178188414,7.52,214.08,213.92,7.42]
[1759178188704,4.2025,214.02,213.87,7.42]
[1759178188912,7.52,214.01,213.87,7.42]
[1759178190110,4.2036,213.96,213.87,11.6253]
[1759178190310,7.52,213.96,213.87,11.6253]
[1759178191512,7.52,213.96,213.87,7.42]
[1759178192610,4.2041,213.94,213.87,7.42]
[1759178194512,7.52,213.96,213.87,11.6252]
[1759178194817,7.52,213.96,213.83,7.42]
[1759178195410,4.2043,213.93,213.85,4.2057]
[1759178196417,7.52,213.96,213.85,4.2057]
[1759178197616,4.2042,213.94,213.85,4.2057]
[1759178197918,7.52,213.96,213.85,4.2057]
[1759178199619,4.2044,213.93,213.85,4.2057]
[1759178201322,4.2044,213.93,213.86,4.2054]
[1759178203724,4.2039,213.95,213.87,4.2052]
[1759178203916,7.52,213.96,213.86,7.42]
[1759178205624,7.52,213.96,213.89,7.42]
[1759178206325,7.52,213.96,213.89,11.6249]
[1759178207623,11.7237,213.96,213.89,11.6249]
[1759178208826,11.7237,213.96,213.9,4.2047]
[1759178211323,4.2033,213.98,213.91,4.2044]
[1759178211924,7.52,213.99,213.89,7.42]
[1759178212724,7.52,213.99,213.93,4.2041]
[1759178213427,11.7232,213.99,213.93,4.2041]
[1759178213627,7.52,213.99,213.91,4.2045]
[1759178213819,7.52,213.98,213.85,7.42]
[1759178214219,7.51,213.93,213.85,7.42]
[1759178214820,65.3944,213.95,213.8,3.85256214]
[1759178215126,7.51,213.91,213.79,7.23]
[1759178216119,4.2055,213.87,213.8,4.2066]
[1759178217827,4.2055,213.87,213.8,17.96076328]
[1759178219133,4.2055,213.87,213.8,4.2066]
[1759178219531,72.9221,213.89,213.77,4.2072]
[1759178220739,7.51,213.85,213.75,65.4545]
[1759178220929,7.51,213.92,213.77,65.4481]
[1759178221126,7.51,213.92,213.8,7.23]
[1759178221728,7.51,213.92,213.85,4.2056]
[1759178222432,11.7144,213.92,213.85,4.2056]
[1759178222633,7.51,213.92,213.82,4.2062]
[1759178222832,7.51,213.92,213.81,7.23]
[1759178223234,7.51,213.92,213.85,4.2056]
[1759178223635,7.51,213.92,213.81,7.23]
[1759178224040,4.2049,213.9,213.82,4.2062]
[1759178225140,7.51,213.89,213.79,4.2068]
[1759178225437,7.51,213.89,213.77,7.23]
[1759178225831,4.2053,213.88,213.77,7.23]
[1759178226043,7.51,213.89,213.79,7.23]
[1759178227342,7.51,213.89,213.83,4.206]
[1759178229940,7.51,213.89,213.79,7.23]
[1759178230334,4.2054,213.87,213.79,7.23]
[1759178231644,4.2054,213.87,213.79,11.4368]
[1759178231849,4.2054,213.87,213.79,7.23]
[1759178232844,7.51,213.89,213.79,7.23]
[1759178233553,7.51,213.89,213.8,65.4393]
[1759178233742,116.29,213.93,213.81,7.23]
[1759178234341,2.15426958,213.92,213.81,9.38426958]
[1759178234946,7.52,213.91,213.81,9.38426958]
[1759178235850,9.67426958,213.91,213.81,9.38426958]
[1759178236550,4.205,213.9,213.83,4.2062]
[1759178236752,9.67426958,213.91,213.81,9.38426958]
[1759178236946,7.52,213.87,213.78,2.15426958]
[1759178237141,7.52,213.87,213.77,7.92]
[1759178237348,4.2059,213.85,213.78,4.2071]
[1759178237645,2.15426958,213.85,213.77,7.92]
[1759178237847,7.52,213.84,213.77,7.92]
[1759178238247,11.7265,213.82,213.77,7.92]
[1759178238443,7.52,213.81,213.75,14.19849363]
[1759178238646,7.52,213.81,213.74,4.2079]
[1759178239647,11.7267,213.81,213.74,18.3796889]
[1759178240154,9.67426958,213.81,213.72,7.92]
[1759178240343,9.67426958,213.81,213.68,7.92]
[1759178240344,7.52,213.81,213.68,7.92]
[1759178240944,4.2075,213.77,213.69,4.2088]
[1759178241458,7.52,213.78,213.68,7.92]
[1759178241656,7.52,213.78,213.71,4.2084]
[1759178241852,7.52,213.78,213.68,7.92]
[1759178242158,4.2075,213.77,213.69,4.2089]
[1759178242749,7.52,213.78,213.69,4.2089]
[1759178242950,7.52,213.78,213.7,4.2086]
[1759178243552,7.52,213.78,213.68,12.1291]
[1759178243752,7.52,213.78,213.68,7.92]
[1759178244452,7.52,213.78,213.66,13.90629358]
[1759178244661,7.54,213.78,213.64,7.43]
[1759178244956,4.2081,213.74,213.65,4.2097]
[1759178245153,7.54,213.72,213.61,3.85256214]
[1759178245356,7.54,213.72,213.6,7.43]
[1759178245558,7.54,213.72,213.62,7.43]
[1759178246161,7.54,213.72,213.65,4.2096]
[1759178249063,7.54,213.72,213.67,11.6393]
[1759178249259,7.54,213.74,213.67,4.2093]
[1759178249666,11.7481,213.74,213.64,4.2098]
[1759178249859,7.54,213.74,213.63,7.43]
[1759178250162,7.54,213.74,213.66,4.2095]
[1759178251265,7.54,213.74,213.64,4.2099]
[1759178251466,11.748,213.74,213.64,4.2099]
[1759178251665,11.748,213.74,213.63,7.43]
[1759178251666,7.54,213.74,213.63,7.43]
[1759178251969,12.85011017,213.73,213.57,7.43]
[1759178252266,7.54,213.69,213.57,21.55130636]
[1759178252459,7.54,213.69,213.57,7.43]
[1759178253066,11.7491,213.69,213.6,4.2105]
[1759178253462,7.54,213.69,213.6,4.2105]
[1759178253663,7.54,213.69,213.57,7.43]
[1759178254469,4.2093,213.67,213.59,4.2108]
[1759178255973,7.54,213.69,213.6,4.2105]
[1759178256670,4.2092,213.68,213.6,4.2105]
[1759178258164,4.2092,213.68,213.61,4.2104]
[1759178258669,7.54,213.66,213.57,7.43]
[1759178259467,4.2099,213.65,213.57,7.43]
[1759178261064,10.91450971,213.65,213.54,14.16118234]
[1759178261267,7.54,213.64,213.53,7.43]
[1759178261769,7.54,213.68,213.56,7.43]
[1759178262471,3.37450971,213.73,213.59,7.43]
[1759178262871,7.54,213.72,213.59,7.43]
[1759178263071,11.7485,213.72,213.64,7.43]
[1759178263675,4.2087,213.71,213.6,7.43]
[1759178264078,7.54,213.72,213.6,7.43]
[1759178264777,7.54,213.72,213.62,4.2101]
[1759178265170,7.54,213.72,213.6,7.43]
[1759178265679,4.2093,213.68,213.6,11.6405]
[1759178265976,7.54,213.72,213.6,7.43]
[1759178266279,7.54,213.72,213.62,4.2102]
[1759178266280,4.2087,213.71,213.62,4.2102]
[1759178267082,7.54,213.72,213.64,7.43]
[1759178268482,11.7485,213.72,213.64,7.43]
[1759178268979,7.54,213.72,213.64,7.43]
[1759178269482,7.54,213.72,213.61,4.2104]
[1759178270477,4.2088,213.7,213.62,4.2102]
[1759178270678,4.2088,213.7,213.63,7.43]
[1759178271079,7.54,213.72,213.63,7.43]
[1759178271385,7.54,213.72,213.54,79.6727544]
[1759178271588,10.91450971,213.7,213.57,7.43]
[1759178272386,4.2097,213.66,213.58,4.211]
[1759178273187,7.54,213.67,213.57,7.43]
[1759178273188,4.2099,213.65,213.57,7.43]
[1759178273488,7.54,213.67,213.57,7.43]
[1759178274583,4.2102,213.63,213.57,11.6412]
[1759178274779,7.54,213.67,213.57,11.6412]
[1759178275585,4.2098,213.65,213.57,11.6412]
[1759178275786,4.2098,213.65,213.58,4.211]
[1759178275986,7.63,213.71,213.57,7.43]
[1759178276193,131.9386,213.71,213.59,7.34]
[1759178276393,127.73,213.71,213.62,4.2103]
[1759178276587,127.73,213.71,213.62,11.5503]
[1759178276788,127.73,213.71,213.62,7.34]
[1759178276986,127.73,213.71,213.64,4.2099]
[1759178277186,7.63,213.71,213.64,4.2099]
[1759178277896,7.63,213.76,213.67,7.34]
[1759178278093,4.2078,213.75,213.67,7.34]
[1759178284194,7.63,213.76,213.68,4.2091]
[1759178284496,7.63,213.76,213.67,7.34]
[1759178284996,7.63,213.76,213.69,4.2088]
[1759178285695,7.63,213.76,213.7,4.2086]
[1759178285899,104.16,213.79,213.71,7.34]
[1759178286501,104.16,213.79,213.71,11.5484]
[1759178286893,104.16,213.79,213.71,7.34]
[1759178287094,7.63,213.82,213.71,7.34]
[1759178287399,120.06,213.83,213.73,7.34]
[1759178287604,120.06,213.83,213.75,7.34]
[1759178287794,7.63,213.86,213.76,3.37450971]
[1759178288195,7.63,213.86,213.79,4.207]
[1759178291897,7.63,213.86,213.8,4.2067]
[1759178292097,7.63,213.86,213.78,7.34]
[1759178293594,7.63,213.86,213.79,4.207]
[1759178303709,7.63,213.86,213.8,4.2067]
[1759178304105,7.85,213.85,213.81,12.2364]
[1759178305002,7.85,213.85,213.81,4.2064]
[1759178305206,7.85,213.85,213.82,8.03]
[1759178306411,12.1354,213.88,213.82,8.03]
[1759178306908,65.3914,213.96,213.82,8.03]
[1759178307110,131.22450971,213.95,213.82,8.03]
[1759178307812,12.1348,213.91,213.84,4.206]